Cogmind - Beta 14 @@@ ROGUE MODE // 2024.12.01 @ 22:21:06 Player: akira Result: Destroyed by D-53 Grenadier with Mini Grenade Launcher Performance ------------- Evolutions (0) 0 Regions Visited (2) 400 Robots Destroyed (14) 70 Value Destroyed (385) 385 Prototype IDs (0) 0 Alien Tech Used (0) 0 Bonus (0) 0 TOTAL SCORE: 855 Bonus ------- None Cogmind --------- Core Integrity 0/250 Matter 242/300 Energy 89/100 System Corruption 1% Temperature Cool (0) Movement Core (200) Ox3 Location -10/Mines Parts ------- > --- POWER (1) -------- (None) > --- PROPULSION (2) --- (None) > --- UTILITY (2) ------ Medium Storage Unit > --- WEAPON (2) ------- (None) > --- INVENTORY (10) --- Improved Heat Sink Improved Terrain Scanner Seismic Detector Core Shielding Hacking Suite Peak State ------------ > --- POWER ------------ Light Nuclear Core > --- PROPULSION ------- Light Treads Light Treads > --- UTILITY ---------- Medium Storage Unit Improved Terrain Scanner > --- WEAPON ----------- Assault Rifle Assault Rifle > --- INVENTORY -------- Light Ion Engine Aluminum Leg Compact Wheel Improved Heat Sink Seismic Detector Core Shielding Hacking Suite Grenade Launcher [Rating: 12] Favorites ----------- Power Light Ion Engine Engine Light Ion Engine Power Core Light Nuclear Core Propulsion Aluminum Leg Treads Light Treads Leg Aluminum Leg Wheel Compact Wheel Utility Signal Interpreter Device Improved Terrain Scanner Storage Small Storage Unit Processor Signal Interpreter Weapon Light Assault Rifle Energy Gun Medium Laser Ballistic Gun Light Assault Rifle Launcher Grenade Launcher Build | -11 -10 -10 ------- Run | Yrd Mat Min Slots Evolved . | . . . Power . | . . . Propulsion . | . . . Utility . | . . . Weapon . | . . . Parts Attached 23 | 7 9 7 Power 4 | . 3 1 Engine 3 | . 2 1 Core 1 | . 1 . Reactor . | . . . Propulsion 7 | 2 2 3 Treads 3 | . 2 1 Leg 3 | 2 . 1 Wheel 1 | . . 1 Hover . | . . . Flight . | . . . Utility 5 | 2 2 1 Device 2 | 1 . 1 Storage 2 | 1 1 . Processor 1 | . 1 . Hackware . | . . . Protection . | . . . Artifact . | . . . Weapon 7 | 3 2 2 Energy Gun 1 | 1 . . Energy Cannon . | . . . Ballistic Gun 5 | 2 2 1 Ballistic Cannon . | . . . Launcher 1 | . . 1 Special Weapon . | . . . Impact Weapon . | . . . Slashing Weapon . | . . . Piercing Weapon . | . . . Special Melee Weapon . | . . . Unidentified Prototypes . | . . . Parts Lost 10 | . 1 9 Power 2 | . . 2 Propulsion 5 | . 1 4 Utility . | . . . Weapon 3 | . . 3 Highest Loss Streak 9 | . 1 9 To Critical Strikes . | . . . Average Slot Usage (%) 99 | . 100 95 Engine 10 | . 11 4 Core 3 | . 2 10 Treads 5 | . 3 24 Leg 22 | . 24 . Device 6 | . 5 14 Storage 14 | . 14 14 Processor 7 | . 8 . Ballistic Gun 26 | . 28 12 Peak Build Rating 12 | 8 10 12 Average Rating 8 | 4 8 10 On Entrance 6 | . 8 10 Naked Turns . | . . . Heaviest Build 21 | 8 19 21 Greatest Support 40 | 20 40 40 Greatest Overweight (x) 3 | . . 3 Average Overweight (x) . | . . . Largest Inventory Capacity 10 | 8 10 10 Average Capacity 8 | 7 8 10 Most Carried 10 | 8 10 9 Average Carried 7 | 3 8 7 Final Capacity 10 | 8 10 10 Final Carried 9 | 7 9 5 Class Distribution -------------------- 100% | Mutant Dominant Class ---------------- Mutant | -10/Materials Mutant | -10/Mines Resources | -11 -10 -10 ----------- Run | Yrd Mat Min Matter Collected 520 | 137 383 . Remotely . | . . . Salvage Created 441 | 26 415 . Parts 34 | 4 30 . Haulers Intercepted . | . . . Recyclers Shooed . | . . . Parts Field Recycled . | . . . Retrieved Matter . | . . . Parts Self-Destructed . | . . . Prevented . | . . . Kills | -11 -10 -10 ------- Run | Yrd Mat Min Combat Hostiles Destroyed 12 | . 12 . Guns 12 | . 12 . Classes Destroyed 4 | 1 3 . Tunneler 1 | 1 . . Operator 1 | . 1 . Swarmer 3 | . 3 . Grunt 9 | . 9 . Best Kill Streak 4 | 1 4 . Combat Bots Only 4 | . 4 . Max Kills in Single Turn 1 | 1 1 . Gunslinging . | . . . Exploded . | . . . Melee . | . . . Uniques/NPCs Destroyed . | . . . Combat | -11 -10 -10 -------- Run | Yrd Mat Min Hostile Shots Fired 65 | . 40 25 Missed 15 | . 13 2 Damage Taken 1228 | . 324 904 Core 266 | . 40 226 Absorbed by Shields . | . . . Core Remaining (%) 100 | 100 . . Volleys Fired 49 | 2 46 1 Largest 2 | 2 2 1 Hottest 40 | 40 40 20 Shots Fired 97 | 4 92 1 Gun 97 | 4 92 1 Cannon . | . . . Launcher . | . . . Special . | . . . Kinetic 97 | 4 92 1 Thermal . | . . . Explosive . | . . . Electromagnetic . | . . . Robot Hit Streak 5 | 2 5 . Robot Miss Streak 4 | 1 4 2 Penetration Max . | . . . Secondary Targets . | . . . Shots Hit Robots 50 | 2 48 . Core Hits 26 | 2 24 . Critical Kills 1 | . 1 . Critical Parts Destroyed . | . . . Critical Strikes 1 | . 1 . Destroy 1 | . 1 . Melee Attacks . | . . . Impact . | . . . Slashing . | . . . Piercing . | . . . Sneak Attacks . | . . . Combat Hostiles . | . . . Follow-up Attacks . | . . . Damage Inflicted 541 | 14 527 . Guns 541 | 14 527 . Cannons . | . . . Explosions . | . . . Melee . | . . . Ramming . | . . . Kinetic 541 | 14 527 . Thermal . | . . . Explosive . | . . . Electromagnetic . | . . . Impact . | . . . Slashing . | . . . Piercing . | . . . Highest Corruption 1 | . 1 1 Average Corruption 1 | . 1 1 Corruption Purged . | . . . Corruption Blocked . | . . . Effects 3 | . 3 . Message Errors 2 | . 2 . Energy Discharges 1 | . 1 . Overload Shots . | . . . Overflow Damage . | . . . Projectiles . | . . . Explosions . | . . . Melee . | . . . Knockbacks . | . . . Impact . | . . . Kinetic . | . . . Secondary . | . . . Self-Inflicted Damage . | . . . Shots . | . . . Rammed . | . . . Targets Rammed . | . . . Kicked . | . . . Crushed . | . . . Highest Temperature 18 | . 18 . Average Temperature 7 | . 7 . Received Heat Transfer 165 | . 165 . Siege Activations . | . . . Robots Corrupted . | . . . Combat Hostiles . | . . . Parts Fried . | . . . Impact Corruptions . | . . . Robots Melted . | . . . Combat Hostiles . | . . . Parts Melted . | . . . Heat Transferred . | . . . Parts Sabotaged . | . . . Parts Stolen . | . . . Parts Stripped . | . . . Power Chain Reactions . | . . . Alert | -11 -10 -10 ------- Run | Yrd Mat Min Peak Influence 230 | 5 230 89 Initial 89 | . 3 89 Average 91 | 1 101 72 Maximum Alert Level 1 | . 1 . Low Security (%) 86 | 100 84 100 Level 1 13 | . 15 . Level 2 . | . . . Level 3 . | . . . Level 4 . | . . . Level 5 . | . . . High Security . | . . . Max Security . | . . . Squads Dispatched 2 | . 2 . Investigation 1 | . 1 . Extermination . | . . . Reinforcement 1 | . 1 . Assault . | . . . Garrison . | . . . Intercept . | . . . Searches Triggered . | . . . Construction Impeded . | . . . Haulers Reinforced . | . . . Active Scanning Responses . | . . . Cargo Convoy Interrupts . | . . . Stealth | -11 -10 -10 --------- Run | Yrd Mat Min Distress Signals 2 | . 2 . Communications Jammed . | . . . Distress Signals . | . . . Times Spotted 28 | . 26 2 Peak Tracking Total 5 | . 5 2 Tactical Retreats 2 | . 2 . Traps | -11 -10 -10 ------- Run | Yrd Mat Min Traps Triggered 2 | . 2 . Indirectly . | . . . Trap Hack Attempts . | . . . Triggered . | . . . Disarmed . | . . . Reprogrammed . | . . . Reused . | . . . Traps Extracted . | . . . Installed . | . . . Triggered . | . . . Machines | -11 -10 -10 ---------- Run | Yrd Mat Min Machines Disabled . | . . . Max in Single Turn . | . . . Machines Repaired . | . . . Machines Dismantled . | . . . Machines Sabotaged . | . . . Overloaded Fab Kills . | . . . Hacking | -11 -10 -10 --------- Run | Yrd Mat Min Machines Accessed 3 | . 3 . Terminals 3 | . 3 . Fabricators . | . . . Repair Stations . | . . . Recycling Units . | . . . Scanalyzers . | . . . Garrison Access . | . . . Total Hacks 7 | . 7 . Successful 4 | . 4 . Failed 3 | . 3 . Catastrophic . | . . . Database Lockouts . | . . . Manual 8 | . 8 . Terminals 7 | . 7 . Fabricators . | . . . Repair Stations . | . . . Recycling Units . | . . . Scanalyzers . | . . . Garrison Access . | . . . Terminal Hacks 3 | . 3 . Robot Analysis 3 | . 3 . Fabricator Hacks . | . . . Repair Station Hacks . | . . . Recycling Unit Hacks . | . . . Scanalyzer . | . . . Garrison Access Hacks . | . . . Unauthorized Hacks 1 | . 1 . Terminals 1 | . 1 . Botnet 1 | . 1 . Fabricators . | . . . Repair Stations . | . . . Recycling Units . | . . . Scanalyzers . | . . . Garrison Access . | . . . Data Cores Recovered . | . . . Used . | . . . Hacking Detections 3 | . 3 . Full Trace Events . | . . . Feedback Events . | . . . Feedback Blocked . | . . . Robot Schematics Acquired . | . . . Robots Built . | . . . Authchips . | . . . Time . | . . . Total Robot Build Rating . | . . . Part Schematics Acquired . | . . . Parts Built . | . . . Authchips . | . . . Time . | . . . Total Part Build Rating . | . . . Parts Repaired . | . . . Time . | . . . Parts Recycled . | . . . Recycled Matter . | . . . Retrieved Matter . | . . . Retrieved Components . | . . . Parts Scanalyzed . | . . . Part Schematics Acquired . | . . . Parts Damaged . | . . . Bothacking | -11 -10 -10 ------------ Run | Yrd Mat Min Used RIF Installer . | . . . Robots Hacked . | . . . Non-combat . | . . . Combat . | . . . Robot Hacks Applied . | . . . Relay Couplers Released . | . . . Fabnet Peak Effective % . | . . . Robots Rewired . | . . . Allies Hacked . | . . . Hacks Repelled . | . . . Allies | -11 -10 -10 -------- Run | Yrd Mat Min Total Allies . | . . . Largest Group . | . . . Highest-Rated Group . | . . . Highest-Rated Ally . | . . . Total Orders . | . . . Ally Attacks . | . . . Total Damage . | . . . Kills . | . . . Allies Corrupted . | . . . Allies Melted . | . . . Intel | -11 -10 -10 ------- Run | Yrd Mat Min Robot Analysis Total 3 | . 3 . Derelict Logs Recovered . | . . . Drone Launches . | . . . Drone Recoveries . | . . . Exploration | -11 -10 -10 ------------- Run | Yrd Mat Min Turns Passed 948 | 77 799 72 Spaces Moved 557 | 47 468 42 Core 5 | 3 . 2 Treads 92 | . 64 28 Legs 449 | 44 404 1 Wheels 11 | . . 11 Hover . | . . . Flight . | . . . Fastest Speed 50 | 50 120 115 Average Speed 126 | 115 125 149 Slowest Speed 200 | 120 160 200 Overloaded Moves . | . . . Propulsion Burnouts . | . . . Robots Hopped . | . . . Cave-ins Triggered . | . . . Exploration Rate (%) 31 | 4 77 13 Regions Visited 2 Branch Regions 1 Pre-discovered Areas . | . . . Known Exits Taken 1 | . 1 . Unknown Exits Taken 1 | 1 . . Scrap Searched . | . . . Spaces Dug . | . . . Terrain Destroyed . | . . . Melee . | . . . Projectile . | . . . AOE . | . . . Terrain Rammed . | . . . Walls Destroyed . | . . . Machines Disabled . | . . . Actions | -11 -10 -10 --------- Run | Yrd Mat Min Total 714 | 64 598 52 Wait 64 | . 64 . Move 555 | 46 467 42 Hop . | . . . Pick Up 14 | 8 6 . Fast Attach 7 | 6 1 . Attach 8 | 1 2 5 Detach 1 | . . 1 Swap 8 | . 6 2 Drop 8 | 1 6 1 Fire 49 | 2 46 1 Melee . | . . . Ram . | . . . Kick . | . . . Crush . | . . . Escape Stasis . | . . . Rewire . | . . . Trap . | . . . Miscellaneous . | . . . Route ------- -11/Scrapyard -10/Materials (discovered 3 exits: *Mat x2 / *Min) -10/Mines History --------- Turn | Location | Event 2 | -11/Scrapyard | Met Revision 17 13 | -11/Scrapyard | Discovered new exit (range 16) 78 | -11/Scrapyard | Entered Materials 140 | -10/Materials | Discovered new exit (range 8) 317 | -10/Materials | Build established: Mutant 370 | -10/Materials | Discovered new exit (range 8) 422 | -10/Materials | Identified exit to Materials 662 | -10/Materials | Discovered exit to Materials (range 8) 876 | -10/Materials | Identified exit to Mines 877 | -10/Materials | Entered Mines 878 | -10/Mines | Assembled infested the area 943 | -10/Mines | Core integrity fell below 50% 947 | -10/Mines | Core integrity fell below 20% 949 | -10/Mines | Destroyed by D-53 Grenadier with Mini Grenade Launcher Last Messages --------------- 00916_ The unstable cave ceiling collapses. 00919_ K-01 Serf collects debris. 00920_ Assault Rifle destroyed. 00922_ The unstable cave ceiling collapses. 00924_ K-01 Serf collects debris. 00928_ Lgt. Nuclear Core destroyed. 00929_ The unstable cave ceiling collapses. 00930_ K-01 Serf destroyed. 00931_ The unstable cave ceiling collapses. 00932_ Grenade Launcher destroyed. 00933_ Com. Wheel destroyed. 00935_ The unstable cave ceiling collapses. 00940_ Lgt. Treads destroyed. 00940_ Assault Rifle destroyed. 00940_ Lgt. Ion Engine destroyed. 00944_ Lgt. Treads destroyed. 00946_ Aluminum Leg destroyed. 00947_ The unstable cave ceiling collapses. 00949_ K-01 Serf collects debris. 00949_ K-01 Serf destroyed. Map ----- +----------------------------------------------------+ | | | | | | | | | | | | | | | | | ????????????????????????????????????????????? | | ????????????????????????????????????????????? | | ????????????????????????????????????????????? | | ????????????????????????????????????????????? | | ????????????????????????#???????????????????? | | ???????????????????????? #??????????????????? | | ???????????????????? ? ? #?????????????????? | | ???#???????????????????? ?????????????????? | | ???????????????????????? ?????????????????? | | ??????#????????????? ??? ?????????????????? | | ?????? ###????????????? ?????????????????? | | ??????# #?????????????? ?????????????????? | | ??????# #???#??????????# ?????#???????????? | | ??????# #?#?###??#?????# #?????????????????? | | ??????# ##?## #?????#### ####??????????????? | | ?????## ##?# ##??#?# # #??????????????? | | ??#### ## ##???## #??????????????? | | ?## ##### @ ####### #??????? | | ## ## ! #??????? | | # * %#########??????? | | #?????????????? | | !% d #?????????????? | | # # d #?????????????? | | ## # $ ##?????????????? | | ?# ## # ##??????????????? | | ?# # # #???????????????? | | ?##### ######### # # ####??????????????? | | ??#### ##?????### # #####?#???????????????? | | ?## #???????######?????????????????????? | | ?# #???????#???????#??????????????????? | | ?# ##??????#???????????????????????????? | | ?## ####??#?#?????????#????????????????????? | | #?####??????#???????????????????????????????? | | ????????????????????????????????????????????? | | ??????????????????????????????#?????????????? | | ????????? ?????????#????????????????????????? | | ????????????????????????????????????????????? | | ????????? ??????????????????????????????????? | | ????????????????????????????????????????????? | | ???????????????#????????????????????????????? | | #?#?????????????????????????????????????????? | | ????????????????????????????????????????????? | +----------------------------------------------------+ Best States ------------- Heat Dissipation 25 Energy Generation 14 Energy Capacity 250 Matter Stores 300 Matter Capacity 300 Sight Range 16 Terrain Scan Range 16 Terrain Scan Density 10 Evasion (%) 55 Recoil Reduction 2 Item Schematics ----------------- None Robot Schematics ------------------ None Fabricated ------------ Nothing Alien Tech Used ----------------- None Achievements -------------- None Challenges ------------ None Game ------ Seed DeliveryLatentDissipator Manual? 0 Play Time 00:09:16 Cumulative 82.4 hours Start 2024.12.01 @ 22:12:59 End 2024.12.01 @ 22:21:06 Sessions 1 Manual Loads 0 Difficulty Rogue Special Mode None Game No. 84 Rogue 84 Adventurer 0 Explorer 0 Win Type - Total 0 Types 0/0/0/0/0/0/0/0/0 Lore% 12 Gallery% 35 Achievement% 33 Wizard Run 0 Options --------- Layout 2 ASCII 0 Keyboard 0 Movement Mouse Keybinds 0 Fullscreen 2 Font 16/SmallcapsGlow Map View 55x47 Zoom Use 7% Tactical HUD 1 Map Filters NONE Filters NONE Steam 1 RUN: cb50b0be-9c95-4647-adfc-e87ea175a482